bitfinex/quotes_ETHUSD_20251206
["timestamp","ask_amount","ask_price","bid_price","bid_amount"]
[1765060059506,0.002,3049.4,3049.3,3.79864118]
[1765060068033,0.002,3049.4,3049.3,3.28064118]
[1765060068235,0.002,3049.4,3049.3,3.79864118]
[1765060069235,0.002,3049.4,3049.3,4.52423529]
[1765060075749,0.002,3049.4,3049.3,4.52543529]
[1765060078443,0.002,3049.4,3049.3,10.81424622]
[1765060082151,0.002,3049.4,3049.3,10.81304622]
[1765060085224,0.002,3049.4,3049.3,10.81424622]
[1765060086255,0.002,3049.4,3049.3,10.81304622]
[1765060097533,0.4552,3049.4,3049.3,10.81184622]
[1765060097930,0.002,3049.4,3049.3,10.81184622]
[1765060102856,0.002,3049.4,3049.3,10.81304622]
[1765060106375,0.002,3049.4,3049.3,10.81424622]
[1765060107692,0.002,3049.4,3049.3,10.81304622]
[1765060109183,0.002,3049.4,3049.3,10.99384622]
[1765060109485,0.002,3049.4,3049.3,10.81184622]
[1765060109858,0.9853,3049.4,3049.3,10.81184622]
[1765060123822,0.9853,3049.4,3049.3,10.29384622]
[1765060124014,0.9853,3049.4,3049.3,4.00503529]
[1765060124321,0.9853,3049.4,3049.3,0.72559411]
[1765060124528,0.9853,3049.4,3049.2,0.72559411]
[1765060124688,0.4945,3049.3,3049.2,0.72559411]
[1765060125007,0.9833,3049.3,3049.2,0.72559411]
[1765060125388,0.9833,3049.3,3049.1,3.79761143]
[1765060125584,0.9726,3049.2,3049.1,4.52320554]
[1765060127012,0.9726,3049.2,3048.5,7.27342308]
[1765060127314,0.4977,3049.1,3048.6,4.52377857]
[1765060127816,0.665,3048.7,3048.6,4.52377857]
[1765060128187,1.1627,3048.7,3048.6,4.52377857]
[1765060129426,1.1627,3048.7,3048.6,4.00578829]
[1765060129584,1.1627,3048.7,3048.6,4.52378829]
[1765060131844,1.1627,3048.7,3048.6,1.24359411]
[1765060132143,1.1627,3048.7,3048.6,0.72559411]
[1765060132313,1.1627,3048.7,3048.5,10.08708091]
[1765060132517,0.939,3048.6,3048.3,3.280517]
[1765060132716,0.1901,3048.7,3048.5,0.518]
[1765060133150,0.939,3048.6,3048.5,0.518]
[1765060140058,0.939,3048.6,3048.3,6.29521016]
[1765060140358,0.4585,3048.4,3048.3,6.29521016]
[1765060140658,0.4585,3048.4,3048.2,1.50060784]
[1765060140845,0.9466,3048.3,3048.2,0.518]
[1765060141920,0.9466,3048.3,3048.2,3.79860159]
[1765060146269,0.9466,3048.3,3048.2,0.518]
[1765060147264,0.9466,3048.3,3048.2,3.79862463]
[1765060149874,0.9466,3048.3,3048.2,0.518]
[1765060151272,0.9466,3048.3,3048.1,10.56083486]
[1765060151478,0.9466,3048.2,3048.1,11.07883486]
[1765060156055,0.9466,3048.2,3048.1,7.2801391]
[1765060156256,0.9466,3048.2,3048.1,0.518]
[1765060156581,0.9466,3048.2,3048.0,0.98260784]
[1765060156780,0.4881,3048.1,3048.0,1.50060784]
[1765060156986,0.9466,3048.1,3048.0,1.50060784]
[1765060158257,0.9466,3048.1,3048.0,0.518]
[1765060160793,0.9466,3048.1,3048.0,3.79883989]
[1765060166395,0.9466,3048.1,3048.0,3.28083989]
[1765060166594,0.9466,3048.1,3048.0,3.79883989]
[1765060166780,0.9466,3048.1,3048.0,4.78382704]
[1765060168427,0.9466,3048.1,3048.0,1.50298715]
[1765060168808,0.9466,3048.1,3048.0,4.78382704]
[1765060174428,0.9466,3048.1,3048.0,0.98498715]
[1765060174635,0.9466,3048.1,3047.8,0.519]
[1765060174802,0.4767,3047.9,3047.8,0.519]
[1765060175312,0.9268,3047.9,3047.8,0.519]
[1765060176438,0.9268,3047.9,3047.8,0.001]
[1765060177932,0.9268,3047.9,3047.8,6.29621016]
[1765060178308,4.20774753,3047.9,3047.8,0.001]
[1765060178634,5.52642715,3047.9,3047.7,0.001]
[1765060178808,0.9268,3047.8,3047.7,0.001]
[1765060181006,4.20785518,3047.8,3047.7,0.001]
[1765060181427,5.19046302,3047.8,3047.7,0.001]
[1765060181738,6.16947204,3047.8,3047.7,0.001]
[1765060186252,6.21048522,3047.8,3047.7,0.001]
[1765060191281,6.34186299,3047.8,3047.7,0.001]
[1765060191568,6.30084981,3047.8,3047.7,0.001]
[1765060192661,7.02644392,3047.8,3047.7,0.001]
[1765060193874,0.4706,3047.3,3046.9,0.001]
[1765060194072,3.492457,3047.7,3046.9,0.001]
[1765060194073,0.4706,3047.0,3046.9,0.001]
[1765060194251,0.9886,3047.0,3046.9,0.001]
[1765060194452,1.4815,3047.0,3046.9,0.001]
[1765060195075,2.26917102,3047.0,3046.9,0.001]
[1765060195237,9.06988518,3047.0,3046.9,0.001]
[1765060195442,13.07739592,3047.0,3046.9,0.001]
[1765060195662,19.87347492,3047.0,3046.9,0.001]
[1765060195969,20.00490881,3047.0,3046.9,0.001]
[1765060197251,0.7543,3046.5,3046.1,0.001]
[1765060197454,1.45320784,3046.2,3046.1,0.001]
[1765060197657,4.97956795,3046.2,3046.1,0.001]
[1765060197837,5.47246795,3046.2,3046.1,0.001]
[1765060200872,3.99696011,3046.2,3046.1,0.001]
[1765060201078,4.48986011,3046.2,3046.1,0.001]
[1765060203781,0.24358157,3046.2,3046.1,0.0032]
[1765060203953,3.28268164,3046.3,3046.1,0.001]
[1765060204153,0.98260784,3046.2,3046.1,0.001]
[1765060204479,3.77558164,3046.3,3046.1,0.001]
[1765060204682,4.26520283,3046.4,3046.1,0.001]
[1765060204881,4.75810283,3046.4,3046.1,0.001]
[1765060205048,1.16640784,3046.8,3046.3,0.0022]
[1765060205251,1.16640784,3046.8,3046.4,0.0022]
[1765060205252,0.98260784,3046.6,3046.4,0.0022]
[1765060205451,0.98260784,3046.8,3046.6,0.0022]
[1765060205692,3.2822398,3046.7,3046.1,0.0032]
[1765060205890,4.26478124,3046.8,3046.2,0.0022]
[1765060206076,0.98260784,3046.6,3046.2,0.0022]
[1765060206793,0.98260784,3046.6,3046.5,0.0022]
[1765060207558,4.06961122,3047.0,3046.5,0.0022]
[1765060207559,0.78767102,3047.0,3046.5,0.0022]
[1765060207885,0.98260784,3046.9,3046.3,3.28267078]
[1765060208259,0.98260784,3046.9,3046.3,3.28487078]
[1765060208692,0.98260784,3046.7,3046.2,3.28277125]
[1765060208872,0.98260784,3046.7,3046.1,3.28380696]
[1765060209289,0.98260784,3046.7,3046.2,3.28276907]
[1765060209480,0.98260784,3046.7,3046.1,0.001]
[1765060209683,0.98260784,3046.7,3046.1,0.519]
[1765060209684,0.98260784,3046.5,3046.1,0.519]
[1765060209892,0.98260784,3046.5,3046.1,0.001]
[1765060210261,0.4929,3046.7,3046.1,0.001]
[1765060210593,0.4929,3046.7,3046.1,0.0032]
[1765060210594,0.98260784,3046.7,3046.1,0.0032]
[1765060210900,1.17260711,3047.7,3046.1,0.0032]
[1765060210901,3.77427817,3047.5,3046.6,6.31004388]
[1765060211065,0.88869782,3047.4,3046.8,0.0022]
[1765060211601,0.98260784,3047.2,3046.8,0.0022]
[1765060212282,1.16640784,3047.9,3047.1,0.0022]
[1765060212465,0.4929,3047.7,3047.1,0.0022]
[1765060212881,0.4706,3047.2,3046.6,0.72559411]
[1765060213313,0.9635,3047.2,3046.5,3.80045527]
[1765060213685,0.4706,3047.2,3046.5,3.80265527]
[1765060215023,0.4706,3047.2,3046.5,7.08511054]
[1765060216615,1.02363045,3047.1,3046.5,3.28465527]
[1765060216820,0.98260784,3047.1,3046.5,7.08511054]
[1765060219637,0.98260784,3047.1,3046.4,0.9854822]
[1765060219638,0.98260784,3046.9,3046.4,0.9854822]
[1765060219806,0.98260784,3046.9,3046.1,0.519]
[1765060220123,0.98260784,3046.7,3046.2,0.98260784]
[1765060220815,1.45630784,3046.7,3046.2,0.98260784]
[1765060221015,1.45630784,3046.7,3046.1,0.001]
[1765060221016,0.98260784,3046.5,3046.1,0.001]
[1765060221399,0.4737,3046.4,3046.1,0.001]
[1765060221925,1.24487941,3046.7,3046.1,0.001]
[1765060222114,0.98260784,3046.5,3046.1,0.001]
[1765060222618,0.4737,3046.4,3046.1,0.001]
[1765060223018,0.4737,3046.4,3046.1,3.28388631]
[1765060225624,0.98260784,3046.5,3046.1,3.28388631]
[1765060225829,0.4737,3046.6,3046.1,3.28388631]
[1765060226308,0.98260784,3046.7,3046.1,3.28388631]
[1765060226841,0.98260784,3046.7,3046.1,6.56677262]
[1765060227045,0.98260784,3046.7,3046.1,6.56897262]
[1765060227335,1.16640784,3046.9,3046.6,0.0022]
[1765060227539,0.98260784,3046.7,3046.6,0.0022]
[1765060227743,0.98260784,3046.7,3046.2,0.0022]
[1765060228132,0.98260784,3046.7,3046.1,6.56677262]
[1765060228457,0.98260784,3046.7,3046.2,0.0022]
[1765060229335,0.98260784,3046.9,3046.6,0.0022]
[1765060231483,1.45630784,3046.9,3046.6,0.0022]
[1765060233828,0.98260784,3046.9,3046.6,0.0022]
[1765060234022,1.97430784,3047.1,3046.6,0.0022]
[1765060234356,0.4737,3047.0,3046.6,0.0022]
[1765060235752,0.98260784,3046.9,3046.6,0.0022]
[1765060235953,1.45630784,3046.9,3046.6,0.0022]
[1765060238226,1.17080784,3046.9,3046.4,3.28256302]
[1765060238437,0.4737,3046.8,3046.4,3.28256302]
[1765060238958,1.17080784,3046.9,3046.4,3.28256302]
[1765060239336,1.64450784,3046.9,3046.4,3.28256302]
[1765060239954,1.64450784,3046.9,3046.4,3.28476302]
[1765060240852,1.64450784,3046.9,3046.4,3.28256302]
[1765060241053,1.64450784,3046.9,3046.3,0.518]
[1765060241054,0.98260784,3046.7,3046.3,0.518]
[1765060241558,0.4737,3046.6,3046.3,0.518]
[1765060241939,0.4737,3046.6,3046.3,3.80061027]
[1765060242450,0.98260784,3046.7,3046.3,3.80061027]
[1765060242748,1.45630784,3046.7,3046.3,3.80061027]
[1765060243356,1.64450784,3046.9,3046.3,3.80061027]
[1765060244486,1.17080784,3046.9,3046.3,3.80061027]
[1765060244782,0.4737,3046.8,3046.3,3.80061027]
[1765060247784,0.4737,3046.8,3046.3,3.28261027]
[1765060257603,0.98260784,3046.7,3046.3,3.28261027]
[1765060258009,0.4996,3046.6,3046.3,3.28261027]
[1765060259928,0.4996,3046.8,3046.3,3.28261027]
[1765060264108,0.4996,3046.8,3046.3,6.56528105]
[1765060264308,0.4996,3047.4,3046.7,0.0022]
[1765060264525,0.4996,3047.4,3046.9,6.30337217]
[1765060265032,0.98260784,3047.3,3046.9,6.30337217]
[1765060265178,1.48220784,3047.4,3046.9,6.30337217]
[1765060265803,0.4996,3047.4,3046.9,6.30337217]
[1765060266211,4.26389988,3047.6,3046.9,6.30337217]
[1765060266212,4.26389988,3047.6,3046.9,9.58536077]
[1765060266419,0.4996,3047.3,3046.9,9.58536077]
[1765060266948,1.48220784,3047.5,3046.9,9.58536077]
[1765060267521,0.98260784,3047.5,3046.9,9.58536077]
[1765060267712,0.4996,3047.4,3046.9,9.58536077]
[1765060268472,0.98260784,3047.5,3046.9,12.86738512]
[1765060269827,1.50060784,3047.7,3047.1,6.30337217]
[1765060270366,0.4996,3047.6,3047.1,6.30337217]
[1765060271756,0.4996,3047.6,3047.1,9.585084]
[1765060272564,0.98260784,3047.7,3047.1,9.587284]
[1765060272933,0.98260784,3047.7,3047.1,12.86909293]
[1765060274182,4.45037891,3047.9,3047.1,12.86689293]
[1765060274471,0.4996,3047.6,3047.1,9.585084]
[1765060276573,0.4996,3047.6,3047.1,12.86689293]
[1765060278982,0.4996,3047.7,3047.1,12.86689293]
[1765060279143,0.4996,3047.6,3047.2,0.9851877]
[1765060282205,0.4996,3047.6,3047.3,3.28159354]
[1765060282568,0.4816,3047.4,3047.2,3.28162056]
[1765060282900,0.98260784,3047.5,3047.2,3.28162056]
[1765060283105,0.4816,3047.3,3047.2,3.28162056]
[1765060284503,0.4816,3047.3,3047.1,4.00740304]
[1765060285374,0.9356,3047.3,3047.1,4.00740304]
[1765060297925,0.9356,3047.2,3047.1,3.28180893]
[1765060298905,0.9356,3047.2,3047.0,3.28187098]
[1765060299106,0.454,3047.1,3047.0,4.00746509]
[1765060299425,0.9356,3047.1,3047.0,4.00746509]
[1765060303339,0.4816,3047.1,3047.0,4.00746509]
[1765060303841,0.454,3047.3,3047.0,7.28938172]
[1765060305135,0.98260784,3047.5,3047.1,6.30337217]
[1765060305435,1.62340784,3047.9,3047.4,0.0022]
[1765060305642,1.43660784,3047.7,3047.3,6.30337217]
[1765060306020,0.454,3047.6,3047.3,6.30337217]
[1765060306216,1.43660784,3047.7,3047.3,6.30337217]
[1765060306444,1.62340784,3047.9,3047.3,6.30337217]
[1765060306760,0.98260784,3047.7,3047.3,6.30337217]
[1765060307340,0.454,3047.8,3047.4,6.5629717]
[1765060307539,0.98260784,3047.7,3047.4,6.5629717]
[1765060308139,1.43660784,3047.7,3047.4,3.28148585]
[1765060308343,0.454,3047.6,3047.4,3.28148585]
[1765060309140,0.4816,3047.5,3047.4,3.28148585]
[1765060309348,0.4816,3047.5,3046.1,0.001]
[1765060309349,3.28148585,3047.4,3046.1,0.001]
[1765060309549,3.28148585,3047.4,3046.6,6.30337217]
[1765060309550,4.21708585,3047.4,3046.6,6.30337217]
[1765060309716,0.454,3047.3,3046.6,6.30337217]
[1765060310214,0.454,3047.3,3046.8,3.2820303]
[1765060310411,0.98260784,3047.1,3046.9,3.28199165]
[1765060310817,1.48130784,3047.1,3046.9,3.28199165]
[1765060311049,0.54278292,3047.3,3046.9,6.30337217]
[1765060311050,0.98260784,3047.3,3046.9,6.30337217]
[1765060311249,1.44800784,3047.0,3046.7,3.80020222]
[1765060311756,1.94670784,3047.0,3046.7,3.80020222]
[1765060311952,1.94670784,3047.0,3046.7,3.28220222]
[1765060313151,1.48030784,3046.8,3046.6,10.10369149]
[1765060313326,0.4977,3046.7,3046.6,6.82137217]
[1765060313526,0.6544,3046.9,3046.6,10.10371794]
[1765060313735,0.6544,3046.9,3046.6,10.10371254]
[1765060313937,1.43790784,3046.8,3046.6,3.28231283]
[1765060315153,0.4977,3046.7,3046.6,3.28231283]
[1765060315952,0.953,3046.7,3046.5,4.52601881]
[1765060317352,0.4977,3046.6,3046.5,4.52601881]
[1765060318072,0.4553,3046.7,3046.5,4.52601881]
[1765060318448,0.4977,3046.6,3046.4,0.72559411]
[1765060318775,0.4553,3046.7,3046.5,3.2823638]
[1765060320381,0.1991,3046.9,3046.5,3.2823638]
[1765060320578,0.98260784,3047.0,3046.8,0.0022]
[1765060321472,0.98260784,3047.0,3046.6,6.30285283]
[1765060322347,1.43790784,3047.3,3046.9,0.0022]
[1765060322962,0.98260784,3047.3,3046.9,0.0022]
[1765060323178,0.4553,3047.2,3046.9,0.0022]
[1765060323878,0.98260784,3047.1,3046.7,3.2344398]
[1765060324253,1.43790784,3047.1,3046.7,3.2344398]
[1765060324454,1.43790784,3047.1,3046.7,6.5166796]
[1765060326884,1.43790784,3047.1,3046.7,3.2344398]
[1765060327083,1.43790784,3047.1,3046.6,3.28227516]
[1765060327084,0.6968,3046.8,3046.6,3.28227516]
[1765060327382,0.98260784,3046.9,3046.7,3.2822398]
[1765060327950,1.43790784,3046.9,3046.7,3.2822398]
[1765060328882,0.4977,3046.8,3046.7,3.2822398]
[1765060329185,1.43790784,3046.9,3046.5,6.56490497]
[1765060330383,0.98260784,3047.1,3046.5,3.2824497]
[1765060330557,0.4553,3046.8,3046.6,0.518]
[1765060331471,0.4553,3046.8,3046.6,3.80026728]
[1765060334088,1.18170784,3046.9,3046.6,3.80026728]
[1765060334290,1.63700784,3046.9,3046.6,3.80026728]
[1765060337559,0.6544,3046.9,3046.6,3.80026728]
[1765060338270,0.6544,3046.9,3046.6,7.08261481]
[1765060344801,0.4967,3047.1,3046.6,13.38546764]
[1765060347801,0.98260784,3047.0,3046.6,13.38546764]
[1765060348929,1.47930784,3047.0,3046.6,13.38546764]
[1765060350215,0.4967,3047.2,3046.6,16.66781517]
[1765060350398,0.98260784,3047.3,3046.9,6.30285283]
[1765060350599,1.47930784,3047.3,3046.9,6.30285283]
[1765060354123,1.47930784,3047.3,3047.0,3.28191663]
[1765060357849,0.98260784,3047.5,3047.0,7.08183326]
[1765060358150,1.47930784,3047.5,3047.0,7.08183326]
[1765060358927,0.4967,3047.4,3047.0,3.79991663]
[1765060359150,0.98260784,3047.3,3047.0,3.79991663]
[1765060360854,0.4967,3047.4,3047.0,3.79991663]
[1765060362454,0.98260784,3047.5,3047.0,7.08183326]
[1765060362643,0.98260784,3047.7,3047.2,6.30285283]
[1765060362843,0.4967,3047.8,3047.3,3.28159354]
[1765060363179,1.66610784,3047.9,3047.3,6.56318708]
[1765060363340,0.98260784,3047.7,3047.3,6.56318708]
[1765060364072,0.4967,3047.8,3047.3,6.56318708]
[1765060364460,0.98260784,3047.7,3047.3,6.56318708]
[1765060364660,1.16940784,3047.9,3047.5,3.28137817]
[1765060364861,0.98260784,3047.7,3047.5,3.28137817]
[1765060365270,1.47930784,3048.1,3047.6,0.72559411]
[1765060365438,0.98260784,3047.9,3047.6,0.72559411]
[1765060365970,0.4967,3047.8,3047.6,0.72559411]
[1765060366360,0.1936,3047.9,3047.6,0.72559411]
[1765060366547,0.1936,3047.9,3047.7,3.28116284]
[1765060366745,0.6903,3047.9,3047.7,3.28116284]
[1765060367752,1.93580784,3047.8,3047.7,4.00675695]
[1765060375559,1.93580784,3047.8,3047.7,3.28116284]
[1765060375751,2.14874862,3047.8,3047.7,3.28116284]
[1765060375979,2.14874862,3047.8,3047.6,3.28122799]
[1765060376167,0.46,3047.7,3047.6,3.28122799]
[1765060376370,0.9427,3047.7,3047.6,3.28122799]
[1765060376680,0.98260784,3047.8,3047.5,6.56275634]
[1765060376881,0.4827,3047.6,3047.5,3.28137817]
[1765060378214,1.44260784,3047.8,3047.5,6.56275634]
[1765060378506,0.46,3047.7,3047.5,6.56275634]
[1765060380181,0.4827,3047.6,3047.5,3.28137817]
[1765060380683,0.9427,3047.6,3047.5,3.28137817]
[1765060381397,1.13523078,3047.6,3046.8,9.58492912]
[1765060381595,1.92530784,3047.5,3046.9,1.24359411]
[1765060381919,1.92530784,3047.5,3047.2,0.98260784]
[1765060382211,0.46,3047.4,3047.2,3.28170123]
[1765060382408,0.4827,3047.3,3047.2,10.30742181]
[1765060382912,0.9427,3047.3,3047.2,10.30742181]
[1765060384606,0.9427,3047.3,3047.2,9.5818277]
[1765060404518,0.4569,3047.6,3047.2,12.86352893]
[1765060404718,0.98260784,3047.5,3047.2,12.86352893]
[1765060405311,0.4569,3047.4,3047.2,12.86352893]
[1765060412471,0.4569,3047.6,3047.2,12.86352893]
[1765060412764,0.4569,3047.7,3047.2,12.86352893]
[1765060412968,0.98260784,3047.6,3047.2,12.86352893]
[1765060413171,0.98260784,3047.6,3047.2,9.5818277]
[1765060413373,0.4569,3047.5,3047.2,9.5818277]
[1765060413543,0.4656,3047.3,3047.2,9.5818277]
[1765060414062,0.9225,3047.3,3047.2,9.5818277]
[1765060415170,0.4656,3047.3,3047.2,9.5818277]
[1765060415873,0.9225,3047.3,3047.2,9.5818277]
[1765060416261,0.4569,3047.5,3047.2,12.86352893]
[1765060429593,0.4656,3047.3,3047.1,0.518]
[1765060429766,1.44820784,3047.2,3046.7,3.28220687]
[1765060429973,0.98260784,3046.8,3046.7,4.00780098]
[1765060430159,1.44820784,3046.8,3046.7,4.00780098]
[1765060430364,1.94140784,3046.8,3046.5,0.98544659]
[1765060430564,1.44580784,3046.6,3046.4,3.28255371]
[1765060430774,0.4632,3046.5,3046.4,0.72559411]
[1765060430974,0.9564,3046.5,3046.4,4.00815713]
[1765060432086,0.9564,3046.5,3046.4,3.28256302]
[1765060434204,0.9564,3046.5,3046.3,6.81812647]
[1765060434205,0.9564,3046.5,3046.3,9.58275961]
[1765060434405,0.4632,3046.4,3046.3,10.30835372]
[1765060437910,0.4632,3046.4,3046.3,10.82635372]
[1765060439305,0.4932,3046.5,3046.3,10.82635372]
[1765060439506,0.98260784,3046.8,3046.3,10.82635372]
[1765060439700,0.4988,3046.7,3046.6,6.30012647]
[1765060440409,0.9747,3046.7,3046.6,6.30012647]
[1765060440611,0.1881,3046.9,3046.6,9.582474]
[1765060440778,0.98260784,3046.8,3046.6,9.582474]
[1765060441378,0.1881,3046.9,3046.6,9.582474]
[1765060441583,0.4759,3046.7,3046.5,9.58255301]
[1765060441783,0.4759,3046.6,3046.5,9.58255301]
[1765060441991,0.98260784,3046.8,3046.3,1.24359411]
[1765060442191,0.98260784,3046.6,3046.4,4.26513475]
[1765060442492,0.98260784,3046.6,3046.4,3.28252691]
[1765060442692,0.9747,3046.5,3046.4,3.28252691]
[1765060449316,0.4759,3046.5,3046.3,4.00824173]
[1765060449511,0.9747,3046.5,3046.3,4.00824173]
[1765060457434,0.98260784,3046.8,3046.3,13.59487625]
[1765060457814,1.48140784,3046.8,3046.4,0.98552752]
[1765060458014,0.4988,3046.7,3046.4,0.98552752]
[1765060459015,0.4988,3046.7,3046.5,0.518]
[1765060459418,0.4988,3046.7,3046.6,3.28234753]
[1765060459917,0.9747,3046.7,3046.6,3.28234753]
[1765060464360,0.4759,3046.7,3046.5,3.28244199]
[1765060464570,0.98260784,3046.8,3046.4,0.98552752]
[1765060464571,1.46010784,3046.6,3046.4,4.26802621]
[1765060464762,1.91070784,3046.6,3046.4,4.26802621]
[1765060464928,1.91070784,3046.6,3046.5,3.28245527]
[1765060470064,1.91070784,3046.6,3046.4,0.98552752]
[1765060470065,1.91070784,3046.6,3046.4,3.28254824]
[1765060470371,0.9281,3046.5,3046.4,4.26807576]
[1765060470764,0.4775,3046.5,3046.4,4.26807576]
[1765060471192,0.9281,3046.5,3046.4,4.26807576]
[1765060474599,0.4775,3046.5,3046.4,0.98552752]
[1765060474794,0.9281,3046.5,3046.3,0.72559411]
[1765060474996,0.4775,3046.4,3046.3,4.00826489]
[1765060475167,0.9281,3046.4,3046.3,4.00826489]
[1765060478098,0.98260784,3046.8,3046.3,7.29093567]
[1765060478276,0.98260784,3046.6,3046.3,7.29093567]
[1765060478476,1.43320784,3046.8,3046.3,7.29093567]
[1765060478801,1.43320784,3046.8,3046.3,8.27650205]
[1765060479298,0.98260784,3046.7,3046.3,8.27650205]
[1765060479505,0.4506,3046.7,3046.4,6.30396374]
[1765060479699,0.1987,3046.9,3046.4,6.30396374]
[1765060479700,0.4506,3046.6,3046.4,6.30396374]
[1765060479906,0.4506,3046.6,3046.4,7.28657158]
[1765060480205,0.4506,3046.6,3046.4,6.30396374]
[1765060480374,0.4506,3046.6,3046.5,0.98260784]
[1765060482008,0.4506,3046.6,3046.5,4.26506311]
[1765060482210,0.9281,3046.6,3046.5,4.26506311]
[1765060491907,0.9281,3046.6,3046.5,3.28245527]
[1765060492713,0.9281,3046.6,3046.4,10.56911111]
[1765060492918,0.9552,3046.5,3046.4,9.58650327]
[1765060493424,0.4765,3046.5,3046.4,9.58650327]
[1765060500330,0.4787,3046.7,3046.4,9.58650327]
[1765060500821,0.473,3046.5,3046.4,9.58650327]
[1765060501193,0.473,3046.5,3046.4,10.56911111]
[1765060504427,0.473,3046.5,3046.4,10.56819399]
[1765060504607,0.9693,3046.5,3046.4,10.56819399]
[1765060506342,0.473,3046.5,3046.4,10.56819399]
[1765060506537,0.9693,3046.5,3046.4,10.56819399]
[1765060507146,0.473,3046.5,3046.4,10.56819399]
[1765060509343,0.9693,3046.5,3046.4,10.56819399]
[1765060509656,0.473,3046.5,3046.4,10.56819399]
[1765060512824,0.4963,3046.7,3046.4,13.85075701]
[1765060513226,0.4963,3046.7,3046.4,9.58558615]
[1765060513457,0.4963,3046.7,3046.5,0.98260784]
[1765060518840,0.473,3046.6,3046.5,4.26506311]
[1765060520140,0.9688,3046.6,3046.5,4.26506311]
[1765060532293,0.9688,3046.6,3046.5,0.98260784]
[1765060534796,0.9688,3046.6,3046.5,4.26506311]
[1765060546817,0.9688,3046.6,3046.5,0.98260784]
[1765060549823,0.9688,3046.6,3046.5,4.26506311]
[1765060554238,0.9688,3046.6,3046.5,0.98260784]
[1765060554532,4.44628831,3046.6,3046.1,0.001]
[1765060554824,1.47850784,3046.2,3046.1,6.30404662]
[1765060555234,0.98260784,3046.2,3046.1,6.30404662]
[1765060555606,1.97390784,3046.2,3046.1,0.98665704]
[1765060555811,2.26955941,3046.2,3046.1,0.001]
[1765060556416,5.55233795,3046.2,3046.1,0.001]
[1765060559334,6.53821201,3046.2,3046.1,0.001]
[1765060561904,5.55233795,3046.2,3046.1,0.001]
[1765060563436,2.26955941,3046.2,3046.1,0.001]
[1765060563629,1.47850784,3046.2,3046.1,0.001]
[1765060564342,1.97390784,3046.2,3046.1,0.001]
[1765060578047,5.25668638,3046.2,3046.1,0.001]
[1765060582080,5.35668638,3046.2,3046.1,0.001]
[1765060582394,5.29772111,3046.2,3046.1,0.001]
[1765060582696,6.31581127,3046.2,3046.1,0.001]
[1765060582895,6.27477654,3046.2,3046.1,0.001]
[1765060585705,6.37477654,3046.2,3046.1,0.001]
[1765060586405,6.27477654,3046.2,3046.1,0.001]
[1765060588200,6.37477654,3046.2,3046.1,0.001]
[1765060588903,6.27477654,3046.2,3046.1,0.001]
[1765060596203,6.37477654,3046.2,3046.1,0.001]
[1765060621730,5.87937654,3046.2,3046.1,0.001]
[1765060622148,2.13215219,3046.2,3046.1,0.001]
[1765060622300,1.11406203,3046.2,3046.1,0.001]
[1765060622501,0.98260784,3046.2,3046.1,0.001]
[1765060624430,0.98260784,3046.4,3046.1,0.001]
[1765060624624,0.98260784,3046.2,3046.1,0.001]
[1765060624827,0.98260784,3046.2,3046.1,0.98671858]
[1765060626629,0.98260784,3046.4,3046.1,4.26960489]
[1765060626933,0.98260784,3046.4,3046.2,6.30516242]
[1765060627437,0.98260784,3046.4,3046.2,7.29084537]
[1765060627738,0.98260784,3046.6,3046.2,7.29084537]
[1765060628039,0.98260784,3046.4,3046.2,10.57359395]
[1765060629441,0.98260784,3046.8,3046.2,10.57359395]
[1765060629644,0.98260784,3046.6,3046.4,6.30516242]
[1765060630338,0.98260784,3046.6,3046.5,0.98559228]
[1765060630848,0.98260784,3046.8,3046.5,0.98559228]
[1765060631011,0.98260784,3046.6,3046.5,0.98559228]
[1765060643442,4.26495537,3046.6,3046.5,0.98559228]
[1765060643952,5.21245537,3046.6,3046.5,0.98559228]
[1765060644559,1.93010784,3046.6,3046.5,0.98559228]
[1765060645258,0.98260784,3046.6,3046.5,0.98559228]
[1765060648582,0.98260784,3047.0,3046.5,0.98559228]
[1765060649257,0.98260784,3046.8,3046.5,0.98559228]
[1765060650134,0.98260784,3046.8,3046.6,6.30516242]
[1765060652954,0.98260784,3046.8,3046.5,0.98559228]
[1765060654736,4.26475077,3046.8,3046.5,0.98559228]
[1765060655134,0.98260784,3046.6,3046.5,0.98559228]
[1765060662867,0.4646,3046.7,3046.5,0.98559228]
[1765060662868,0.98260784,3046.8,3046.5,0.98559228]
[1765060663163,1.44720784,3046.8,3046.5,0.98559228]
[1765060664468,0.98260784,3046.6,3046.5,0.98559228]
[1765060665549,0.98260784,3046.6,3046.3,3.14624582]
[1765060665749,0.98260784,3046.6,3046.3,4.13176687]
[1765060670038,0.4646,3046.7,3046.3,4.13176687]
[1765060676385,0.98260784,3046.6,3046.3,0.98552105]
[1765060680289,1.96521568,3047.0,3046.3,4.26818121]
[1765060680496,1.47500784,3047.6,3046.8,6.30516242]
[1765060680692,1.64800784,3046.9,3046.4,0.72559411]
[1765060680885,1.64800784,3046.9,3046.7,0.98549191]
[1765060681192,1.64800784,3046.9,3046.1,0.001]
[1765060681193,0.4827,3046.5,3046.1,0.001]
[1765060681401,0.4827,3046.4,3046.1,0.001]
[1765060681995,0.9751,3046.4,3046.2,0.98560199]
[1765060683071,0.98260784,3046.7,3046.3,6.30516242]
[1765060683394,0.517,3046.8,3046.3,6.30516242]
[1765060683765,0.517,3046.8,3046.3,7.29076441]
[1765060684692,0.98260784,3046.7,3046.3,10.57338521]
[1765060686396,0.98260784,3046.7,3046.3,4.26822279]
[1765060687495,0.517,3046.8,3046.3,3.2826208]
[1765060687800,0.517,3046.8,3046.4,0.98554047]
[1765060688705,0.517,3046.8,3046.4,4.26807814]
[1765060688879,1.0094,3046.8,3046.4,4.26807814]
[1765060689201,1.47500784,3046.7,3046.4,4.26807814]
[1765060689895,0.98260784,3046.7,3046.4,4.26807814]
[1765060696306,1.47500784,3046.7,3046.4,4.26807814]
[1765060699303,0.98260784,3046.7,3046.4,4.26807814]
[1765060699602,1.16530784,3046.9,3046.4,4.26807814]
[1765060699803,0.98260784,3046.7,3046.4,4.26807814]
[1765060701003,1.47320784,3046.7,3046.4,4.26807814]
[1765060703893,1.47320784,3046.7,3046.4,0.98554047]
[1765060704289,1.45500784,3046.5,3046.1,0.001]
[1765060704606,1.45500784,3046.5,3046.1,4.99512203]